fUSD/lending_fUSD_20251019
["ID","MTS","AMOUNT","RATE_DAILY","PERIOD"]
[391807593,1760861443242,-500.0,0.00030136,8]
[391807594,1760861443255,-483.3198623,0.00030136,8]
[391807596,1760861443271,-190.06874116,0.00030136,8]
[391807598,1760861443282,-500.0,0.00030136,8]
[391807599,1760861443293,-500.0,0.00030136,8]
[391807600,1760861443303,-500.0,0.00030136,8]
[391807601,1760861443314,-500.0,0.00030136,8]
[391807602,1760861443326,-500.0,0.00030136,8]
[391807603,1760861443339,-500.0,0.00030136,8]
[391807604,1760861443352,-500.0,0.00030136,8]
[391807605,1760861443364,-500.0,0.00030136,8]
[391807606,1760861443377,-500.0,0.00030136,8]
[391807607,1760861443389,-500.0,0.00030136,8]
[391807608,1760861443402,-500.0,0.00030136,8]
[391807609,1760861443414,-500.0,0.00030136,8]
[391807610,1760861443426,-500.0,0.00030136,8]
[391807611,1760861443438,-500.0,0.00030136,8]
[391807612,1760861443451,-500.0,0.00030136,8]
[391807613,1760861443463,-500.0,0.00030136,8]
[391807614,1760861443475,-500.0,0.00030136,8]
[391807615,1760861443487,-500.0,0.00030136,8]
[391807616,1760861443500,-500.0,0.00030136,8]
[391807617,1760861443512,-500.0,0.00030136,8]
[391807618,1760861443524,-500.0,0.00030136,8]
[391807619,1760861443537,-500.0,0.00030136,8]
[391807620,1760861443548,-500.0,0.00030136,8]
[391807621,1760861443560,-500.0,0.00030136,8]
[391807622,1760861443572,-481.0135669,0.00030136,8]
[391807623,1760861443584,-720.36,0.00030136,8]
[391807624,1760861443595,-720.36,0.00030136,8]
[391807625,1760861443607,-720.36,0.00030136,8]
[391807626,1760861443620,-720.36,0.00030136,8]
[391807627,1760861443632,-500.0,0.00030136,8]
[391807628,1760861443644,-500.0,0.00030136,8]
[391807629,1760861443656,-500.0,0.00030136,8]
[391807630,1760861443667,-640.42100071,0.00030136,8]
[391807631,1760861443679,-500.0,0.00030136,8]
[391807632,1760861443690,-500.0,0.00030136,8]
[391807633,1760861443706,-497.97635329,0.00030136,8]
[391807634,1760861443719,-500.0,0.00030136,8]
[391807635,1760861443731,-606.37480113,0.00030136,8]
[391807636,1760861443743,-500.0,0.00030136,8]
[391807637,1760861443754,-500.0,0.00030136,8]
[391807638,1760861443766,-620.29881086,0.00030136,8]
[391807639,1760861443778,-501.32716591,0.00030136,8]
[391807640,1760861443790,-501.13602564,0.00030136,8]
[391807641,1760861443803,-2078.91,0.00030136,8]
[391807642,1760861443814,-2078.91,0.00030136,8]
[391807643,1760861443827,-2078.91,0.00030136,8]
[391807644,1760861443838,-2078.91,0.00030136,8]
[391807645,1760861443849,-500.0,0.00030136,8]
[391807646,1760861443862,-2078.91,0.00030136,8]
[391807647,1760861443874,-500.0,0.00030136,8]
[391807648,1760861443885,-500.0,0.00030136,8]
[391807649,1760861443896,-508.81693486,0.00030136,8]
[391807650,1760861443910,-500.61700491,0.00030136,8]
[391807651,1760861443921,-500.21256711,0.00030136,2]
[391807652,1760861443932,-500.0,0.00030136,8]
[391807653,1760861443944,-500.0,0.00030136,8]
[391807654,1760861443955,-500.0,0.00030136,8]
[391807655,1760861443965,-501.38958444,0.00030136,8]
[391807656,1760861443976,-501.16655676,0.00030136,8]
[391807657,1760861443987,-500.0,0.00030136,8]
[391807658,1760861443999,-641.57319282,0.00030136,8]
[391807659,1760861444010,-501.76084397,0.00030136,8]
[391807660,1760861444021,-500.62608911,0.00030136,8]
[391807661,1760861444032,-500.0,0.00030136,8]
[391807662,1760861444043,-500.0,0.00030136,8]
[391807663,1760861444054,-500.0,0.00030136,8]
[391807664,1760861444065,-645.38808451,0.00030136,8]
[391807665,1760861444080,-574.0,0.00030136,8]
[391807666,1760861444092,-500.0,0.00030136,8]
[391807667,1760861444104,-500.0,0.00030136,8]
[391807668,1760861444115,-500.0,0.00030136,8]
[391807669,1760861444127,-532.85453738,0.00030136,8]
[391807670,1760861444139,-500.0,0.00030136,8]
[391807671,1760861444150,-500.0,0.00030136,8]
[391807672,1760861444161,-500.0,0.00030136,8]
[391807673,1760861444174,-500.0,0.00030136,8]
[391807674,1760861444185,-500.0,0.00030136,8]
[391807675,1760861444198,-500.0,0.00030136,8]
[391807676,1760861444209,-537.66913232,0.00030136,8]
[391807677,1760861444220,-500.0,0.00030136,8]
[391807678,1760861444233,-500.0,0.00030136,8]
[391807679,1760861444246,-500.0,0.00030136,8]
[391807680,1760861444259,-501.86073123,0.00030136,8]
[391807681,1760861444271,-501.48471818,0.00030136,8]
[391807682,1760861444284,-500.0,0.00030136,8]
[391807683,1760861444296,-500.0,0.00030136,8]
[391807684,1760861444308,-369.14242651,0.00030136,8]
[391807685,1760861444320,-500.0,0.00030136,8]
[391807686,1760861444332,-500.0,0.00030136,8]
[391807687,1760861444344,-500.0,0.00030136,8]
[391807688,1760861444354,-500.94814105,0.00030136,8]
[391807689,1760861444563,-500.0,0.00030136,8]
[391807690,1760861444581,-500.0,0.00030136,8]
[391807691,1760861444592,-500.0,0.00030136,8]
[391807692,1760861444601,-501.71380399,0.00030136,8]
[391807693,1760861444610,-500.0,0.00030136,8]
[391807694,1760861444620,-500.0,0.00030136,8]
[391807695,1760861444630,-500.0,0.00030136,8]
[391807696,1760861444641,-538.18648249,0.00030136,8]
[391807697,1760861444651,-500.0,0.00030136,8]
[391807698,1760861444659,-500.0,0.00030136,8]
[391807699,1760861444668,-500.0,0.00030136,8]
[391807700,1760861444678,-500.0,0.00030136,8]
[391807701,1760861444687,-354.92505924,0.00030136,8]
[391807702,1760861444698,-500.0,0.00030136,8]
[391807703,1760861444710,-500.0,0.00030136,8]
[391807704,1760861444719,-500.0,0.00030136,8]
[391807705,1760861444728,-500.0,0.00030136,8]
[391807706,1760861444738,-500.0,0.00030136,8]
[391807707,1760861444747,-431.3085439,0.00030136,8]
[391807708,1760861444756,-500.0,0.00030136,8]
[391807709,1760861444765,-500.78498147,0.00030136,8]
[391807710,1760861444774,-500.0,0.00030136,8]
[391807711,1760861444787,-500.0,0.00030136,8]
[391807712,1760861444796,-500.0,0.00030136,8]
[391807713,1760861444805,-501.84441681,0.00030136,8]
[391807714,1760861444814,-500.0,0.00030136,8]
[391807715,1760861444823,-500.0,0.00030136,8]
[391807716,1760861444832,-500.0,0.00030136,8]
[391807717,1760861444841,-501.20776461,0.00030136,8]
[391807718,1760861444850,-160.06359338,0.00030173,2]
[391807719,1760861444860,-12052.5453378,0.00030174,3]
[391807720,1760861444869,-1425.0,0.00030187,2]
[391807721,1760861444879,-985.05,0.000302,2]
[391807722,1760861444887,-1327.22,0.00030224,120]
[391807723,1760861444897,-1425.0,0.00030231,2]
[391807724,1760861444906,-7756.98722847,0.00030325,3]
[391807725,1760861444915,-1000.0,0.00030474,2]
[391807726,1760861444924,-11417.80182359,0.00030499,2]
[391807727,1760861444934,-7756.98722847,0.00030512,3]
[391807728,1760861444943,-412.69420133,0.00030521,2]
[391807729,1760861444952,-500.0,0.00030531,2]
[391807730,1760861444962,-500.0,0.00030531,8]
[391807731,1760861444971,-300.0,0.00030531,2]
[391807732,1760861444980,-302.3536161,0.00030558,5]
[391807733,1760861444990,-254.95664668,0.00030695,15]
[391807734,1760861444999,-2413.78993773,0.00030708,2]
[391807735,1760861445008,-7756.98722847,0.000308,3]
[391807736,1760861445018,-1841.15,0.00030891,2]
[391807737,1760861445027,-2547.0,0.00030963,2]
[391807738,1760861445037,-151.0,0.00030963,30]
[391807739,1760861445047,-151.0,0.00030963,30]
[391807740,1760861445056,-151.0,0.00030963,30]
[391807741,1760861445066,-151.0,0.00030963,30]
[391807742,1760861445075,-151.0,0.00030963,30]
[391807743,1760861445085,-151.0,0.00030963,30]
[391807744,1760861445095,-151.0,0.00030963,30]
[391807745,1760861445104,-151.0,0.00030963,30]
[391807746,1760861445114,-151.538313,0.00030963,30]
[391807747,1760861445123,-345.816669,0.00030963,30]
[391807748,1760861445133,-151.0,0.00030963,30]
[391807749,1760861445143,-345.816669,0.00030963,30]
[391807750,1760861445152,-151.0,0.00030963,30]
[391807751,1760861445166,-151.0,0.00030963,30]
[391807752,1760861445175,-345.816669,0.00030963,30]
[391807753,1760861445184,-151.0,0.00030963,30]
[391807754,1760861445194,-152.131973,0.00030963,30]
[391807755,1760861445203,-345.816669,0.00030963,30]
[391807756,1760861445212,-151.0,0.00030963,30]
[391807757,1760861445221,-434.435614,0.00030963,30]
[391807758,1760861445230,-151.0,0.00030963,30]
[391807759,1760861445240,-434.435614,0.00030963,30]
[391807760,1760861445249,-434.435614,0.00030963,30]
[391807761,1760861445259,-434.435614,0.00030963,30]
[391807762,1760861445269,-151.0,0.00030963,30]
[391807763,1760861445278,-609.436513,0.00030963,30]
[391807764,1760861445288,-609.436513,0.00030963,30]
[391807765,1760861445297,-258.356315,0.00030963,30]
[391807766,1760861445307,-609.436513,0.00030963,30]
[391807767,1760861445316,-258.356315,0.00030963,30]
[391807768,1760861445326,-609.436513,0.00030963,30]
[391807769,1760861445335,-258.356315,0.00030963,30]
[391807770,1760861445345,-258.356315,0.00030963,30]
[391807771,1760861445354,-1699.0,0.00030963,2]
[391807772,1760861445363,-1294.00936,0.00030986,2]
[391807773,1760861445373,-211.0,0.00031,30]
[391807774,1760861445383,-412.69420133,0.00031005,2]
[391807775,1760861445393,-1425.0,0.00031121,2]
[391807776,1760861445402,-152.0,0.00031133,4]
[391807777,1760861445412,-720.36,0.00031143,8]
[391807778,1760861445422,-7756.98722847,0.00031144,3]
[391807779,1760861445431,-7756.98722847,0.00031144,3]
[391807780,1760861445441,-500.0,0.00031153,2]
[391807781,1760861445450,-151.0,0.00031154,30]
[391807782,1760861445459,-269.573331,0.00031154,30]
[391807783,1760861445469,-151.0,0.00031154,30]
[391807784,1760861445479,-151.0,0.00031154,30]
[391807785,1760861445488,-262.873471,0.00031154,30]
[391807786,1760861445498,-250.46143,0.00031154,30]
[391807787,1760861445507,-250.46143,0.00031154,30]
[391807788,1760861445517,-151.0,0.00031154,30]
[391807789,1760861445527,-250.46143,0.00031154,30]
[391807790,1760861445537,-250.46143,0.00031154,30]
[391807791,1760861445549,-151.0,0.00031154,30]
[391807792,1760861445559,-151.0,0.00031154,30]
[391807793,1760861445568,-175.864244,0.00031154,30]
[391807794,1760861445578,-151.0,0.00031154,30]
[391807795,1760861445587,-151.0,0.00031154,30]
[391807796,1760861445596,-151.0,0.00031154,30]
[391807797,1760861445606,-151.0,0.00031154,30]
[391807798,1760861445615,-151.0,0.00031154,30]
[391807799,1760861445624,-198.366145,0.00031154,30]
[391807800,1760861445639,-198.366145,0.00031154,30]
[391807801,1760861445647,-198.366145,0.00031154,30]
[391807802,1760861445657,-348.131114,0.00031154,30]
[391807803,1760861445666,-198.366145,0.00031154,30]
[391807804,1760861445676,-348.131114,0.00031154,30]
[391807805,1760861445685,-348.131114,0.00031154,30]
[391807806,1760861445695,-348.131114,0.00031154,30]
[391807807,1760861445705,-151.0,0.00031154,30]
[391807808,1760861445715,-151.0,0.00031154,30]
[391807809,1760861445725,-151.0,0.00031154,30]
[391807810,1760861445735,-870.12291,0.00031154,30]
[391807811,1760861445744,-870.12291,0.00031154,30]
[391807813,1760861445754,-870.12291,0.00031154,30]
[391807814,1760861445764,-870.12291,0.00031154,30]
[391807815,1760861445774,-151.827902,0.00031154,30]
[391807816,1760861445783,-151.0,0.00031154,30]
[391807817,1760861445793,-151.0,0.00031154,30]
[391807818,1760861445802,-151.0,0.00031154,30]
[391807819,1760861445811,-532.45988,0.00031154,30]
[391807820,1760861445821,-532.45988,0.00031154,30]
[391807821,1760861445830,-532.45988,0.00031154,30]
[391807822,1760861445839,-151.0,0.00031154,30]
[391807823,1760861445848,-151.588847,0.00031154,30]
[391807824,1760861445858,-1467.802554,0.00031154,30]
[391807825,1760861445867,-532.45988,0.00031154,30]
[391807826,1760861445877,-151.0,0.00031154,30]
[391807827,1760861445886,-1467.802554,0.00031154,30]
[391807828,1760861445895,-153.051678,0.00031154,30]
[391807829,1760861445904,-652.43039,0.00031154,30]
[391807830,1760861445914,-1467.802554,0.00031154,30]
[391807831,1760861445924,-652.43039,0.00031154,30]
[391807832,1760861445933,-1467.802554,0.00031154,30]
[391807833,1760861445943,-652.43039,0.00031154,30]
[391807834,1760861445953,-652.43039,0.00031154,30]
[391807835,1760861445963,-286.783587,0.00031154,30]
[391807836,1760861445972,-286.783587,0.00031154,30]
[391807837,1760861445983,-723.469833,0.00031154,30]
[391807838,1760861445992,-286.783587,0.00031154,30]
[391807839,1760861446002,-428.477113,0.00031154,30]
[391807840,1760861446011,-723.469833,0.00031154,30]
[391807841,1760861446021,-203.545326,0.00031154,30]
[391807842,1760861446031,-286.783587,0.00031154,30]
[391807843,1760861446041,-151.0,0.00031154,30]
[391807845,1760861446050,-428.477113,0.00031154,30]
[391807846,1760861446060,-723.469833,0.00031154,30]
[391807847,1760861446070,-203.545326,0.00031154,30]
[391807848,1760861446080,-151.0,0.00031154,30]
[391807849,1760861446090,-428.477113,0.00031154,30]
[391807850,1760861446099,-723.469833,0.00031154,30]
[391807851,1760861446109,-203.545326,0.00031154,30]
[391807852,1760861446119,-428.477113,0.00031154,30]
[391807853,1760861446129,-203.545326,0.00031154,30]
[391807854,1760861446139,-151.0,0.00031154,30]
[391807855,1760861446148,-151.0,0.00031154,30]
[391807856,1760861446158,-151.0,0.00031154,30]
[391807857,1760861446168,-151.0,0.00031154,30]
[391807858,1760861446178,-151.0,0.00031154,30]
[391807859,1760861446187,-151.0,0.00031154,30]
[391807860,1760861446197,-151.0,0.00031154,30]
[391807861,1760861446207,-156.122781,0.00031154,30]
[391807862,1760861446216,-151.0,0.00031154,30]
[391807863,1760861446226,-208.672767,0.00031154,30]
[391807864,1760861446235,-208.672767,0.00031154,30]
[391807865,1760861446245,-151.0,0.00031154,30]
[391807866,1760861446255,-208.672767,0.00031154,30]
[391807867,1760861446270,-208.672767,0.00031154,30]
[391807868,1760861446279,-151.0,0.00031154,30]
[391807869,1760861446289,-151.0,0.00031154,30]
[391807870,1760861446299,-228.705366,0.00031154,30]
[391807871,1760861446308,-151.0,0.00031154,30]
[391807872,1760861446317,-151.0,0.00031154,30]
[391807873,1760861446327,-151.0,0.00031154,30]
[391807874,1760861446336,-11417.80182359,0.00031154,2]
[391807875,1760861446350,-985.05,0.000312,2]
[391807876,1760861446359,-1425.0,0.00031245,2]
[391807877,1760861446369,-254.95664668,0.00031256,15]
[391807878,1760861446379,-162.76170028,0.00031331,2]
[391807879,1760861446388,-1000.0,0.00031363,2]
[391807880,1760861446398,-1199.86,0.00031406,30]
[391807881,1760861446407,-1199.86,0.00031406,30]
[391807882,1760861446418,-150.0,0.0003141,120]
[391807883,1760861446428,-7756.98722847,0.00031478,3]
[391807884,1760861446437,-461.56822466,0.00031479,30]
[391807885,1760861446448,-7756.98722847,0.00031488,3]
[391807886,1760861446458,-412.69420133,0.0003149,2]
[391807887,1760861446468,-12000.0,0.00031498,3]
[391807888,1760861446478,-1000.0,0.00031501,2]
[391807889,1760861446487,-150.0,0.00031564,120]
[391807890,1760861446496,-500.0,0.00031565,7]
[391807891,1760861446506,-500.0,0.00031565,7]
[391807892,1760861446515,-609.17149946,0.00031565,7]
[391807893,1760861446525,-2413.78993773,0.00031586,2]
[391807894,1760861446534,-461.56822466,0.00031616,30]
[391807895,1760861446543,-1425.0,0.00031634,2]
[391807896,1760861446554,-1425.0,0.00031679,2]
[391807897,1760861446564,-700.0,0.000317,11]
[391807898,1760861446574,-461.56822466,0.00031726,30]
[391807899,1760861446584,-474.98,0.00031753,2]
[391807900,1760861446594,-1425.0,0.00031769,2]
[391807901,1760861446604,-7756.98722847,0.000318,3]
[391807902,1760861446614,-1000.0,0.000318,11]
[391807903,1760861446624,-7756.98722847,0.00031801,3]
[391807904,1760861446636,-1000.0,0.00031807,2]
[391807905,1760861446646,-11417.80182359,0.0003181,2]
[391807906,1760861446655,-1000.0,0.0003181,2]
[391807907,1760861446666,-7756.98722847,0.0003181,3]
[391807908,1760861446676,-1199.86,0.00031811,30]
[391807909,1760861446685,-1199.86,0.00031811,30]
[391807910,1760861446695,-1199.86,0.00031811,30]
[391807911,1760861446707,-1199.86,0.00031811,30]
[391807912,1760861446717,-1199.86,0.00031811,30]
[391807913,1760861446727,-1199.86,0.00031811,30]
[391807914,1760861446736,-1199.86,0.00031811,30]
[391807915,1760861446746,-1199.86,0.00031811,30]
[391807916,1760861446755,-1199.86,0.00031811,30]
[391807917,1760861446765,-1199.86,0.00031811,30]
[391807920,1760861446775,-1199.86,0.00031811,30]
[391807922,1760861446784,-254.95664668,0.00031817,15]
[391807924,1760861446793,-1199.86,0.0003182,30]
[391807925,1760861446803,-1199.86,0.0003182,30]
[391807926,1760861446812,-1195.22,0.0003182,30]
[391807927,1760861446821,-1199.86,0.0003182,30]
[391807928,1760861446831,-1199.86,0.0003182,30]
[391807929,1760861446840,-1199.86,0.0003182,30]
[391807930,1760861446850,-1199.86,0.0003182,30]
[391807931,1760861446859,-1199.86,0.0003182,30]
[391807932,1760861446869,-1199.86,0.0003182,30]
[391807933,1760861446879,-1199.86,0.0003182,30]
[391807934,1760861446888,-1199.86,0.0003182,30]
[391807935,1760861446898,-1199.86,0.0003182,30]
[391807936,1760861446907,-1199.86,0.0003182,30]
[391807937,1760861446917,-1199.86,0.0003182,30]
[391807938,1760861446927,-2398.66,0.0003182,30]
[391807939,1760861446934,-1199.86,0.0003182,30]
[391807940,1760861446943,-1199.86,0.0003182,30]
[391807941,1760861446954,-1199.86,0.0003182,30]
[391807942,1760861446963,-1643.16,0.0003182,30]
[391807943,1760861446974,-150.0,0.00031848,120]
[391807944,1760861446983,-461.56822466,0.00031863,30]
[391807945,1760861446993,-7756.98722847,0.00031864,3]
[391807946,1760861447003,-2012.04659272,0.000319,30]
[391807947,1760861447012,-151.0,0.000319,30]
[391807948,1760861447021,-151.0,0.000319,30]
[391807949,1760861447031,-151.0,0.000319,15]
[391807950,1760861447040,-151.0,0.000319,15]
[391807951,1760861447049,-151.0,0.000319,30]
[391807952,1760861447059,-173.341069,0.000319,15]
[391807953,1760861447070,-151.0,0.000319,30]
[391807954,1760861447079,-151.0,0.000319,30]
[391807955,1760861447088,-152.361256,0.000319,30]
[391807956,1760861447097,-151.0,0.000319,30]
[391807957,1760861447107,-151.0,0.000319,30]
[391807958,1760861447116,-257.314021,0.000319,30]
[391807959,1760861447126,-151.0,0.000319,30]
[391807960,1760861447135,-151.0,0.000319,30]
[391807961,1760861447145,-155.114931,0.000319,30]
[391807962,1760861447155,-233.925896,0.000319,30]
[391807963,1760861447164,-155.114931,0.000319,30]
[391807964,1760861447174,-155.114931,0.000319,30]
[391807965,1760861447183,-155.114931,0.000319,30]
[391807966,1760861447193,-237.431695,0.000319,30]
[391807967,1760861447202,-160.557448,0.000319,30]
[391807968,1760861447211,-160.557448,0.000319,30]
[391807969,1760861447221,-160.557448,0.000319,30]
[391807970,1760861447230,-152.525794,0.000319,30]
[391807971,1760861447240,-151.0,0.000319,30]
[391807972,1760861447250,-160.557448,0.000319,30]
[391807973,1760861447260,-151.0,0.000319,30]
[391807974,1760861447270,-1300.0,0.000319,11]
[391807975,1760861447279,-1425.0,0.00031948,2]
[391807976,1760861447289,-461.56822466,0.00031973,30]
[391807977,1760861447298,-412.69420133,0.00031975,2]
[391807978,1760861447308,-15513.9744569,0.0003199,3]
[391807979,1760861447318,-1018.2092,0.00032,2]
[391807980,1760861447327,-1000.0,0.00032,2]
[391807981,1760861447337,-211.0,0.00032,30]
[391807982,1760861447347,-1000.0,0.00032,2]
[391807983,1760861447363,-1000.0,0.00032,2]
[391807984,1760861447372,-1003.59619407,0.00032,30]
[391807985,1760861447381,-162.54,0.00032,60]
[391807986,1760861447391,-1000.0,0.00032,2]
[391807987,1760861447400,-1000.0,0.00032,2]
[391807988,1760861447410,-151.0,0.00032,30]
[391807989,1760861447419,-151.0,0.00032,30]
[391807990,1760861447428,-151.0,0.00032,30]
[391807991,1760861447438,-194.0,0.00032,14]
[391807992,1760861447448,-151.0,0.00032,30]
[391807993,1760861447459,-151.0,0.00032,30]
[391807994,1760861447469,-151.0,0.00032,30]
[391807995,1760861447479,-151.0,0.00032,30]
[391807996,1760861447488,-189.98279,0.00032,30]
[391807997,1760861447498,-189.98279,0.00032,30]
[391807998,1760861447508,-189.98279,0.00032,30]
[391807999,1760861447518,-189.98279,0.00032,30]
[391808000,1760861447527,-152.720929,0.00032,30]
[391808001,1760861447537,-151.0,0.00032,30]
[391808002,1760861447547,-879.467,0.00032,2]
[391808003,1760861447556,-1072.883028,0.00032,30]
[391808004,1760861447566,-1072.883028,0.00032,30]
[391808005,1760861447575,-1072.883028,0.00032,30]
[391808006,1760861447585,-151.0,0.00032,30]
[391808007,1760861447595,-1072.883028,0.00032,30]
[391808008,1760861447604,-151.0,0.00032,30]
[391808009,1760861447614,-153.949338,0.00032,30]
[391808010,1760861447623,-703.904807,0.00032,30]
[391808011,1760861447636,-151.0,0.00032,30]
[391808012,1760861447646,-556.017671,0.00032,30]
[391808013,1760861447655,-703.904807,0.00032,30]
[391808014,1760861447665,-151.0,0.00032,30]
[391808015,1760861447675,-556.017671,0.00032,30]
[391808016,1760861447685,-703.904807,0.00032,30]
[391808017,1760861447694,-151.0,0.00032,30]
[391808018,1760861447705,-556.017671,0.00032,30]
[391808019,1760861447715,-151.0,0.00032,30]
[391808020,1760861447724,-703.904807,0.00032,30]
[391808021,1760861447734,-151.0,0.00032,30]
[391808022,1760861447744,-556.017671,0.00032,30]
[391808023,1760861447754,-151.0,0.00032,30]
[391808024,1760861447764,-151.0,0.00032,30]
[391808025,1760861447774,-151.0,0.00032,30]
[391808026,1760861447784,-151.0,0.00032,30]
[391808027,1760861447794,-151.0,0.00032,30]
[391808028,1760861447803,-151.0,0.00032,30]
[391808029,1760861447813,-151.0,0.00032,30]
[391808030,1760861447822,-985.05,0.00032,2]
[391808031,1760861447832,-151.0,0.00032,30]
[391808032,1760861448007,-151.0,0.00032,30]
[391808033,1760861448017,-151.0,0.00032,30]
[391808034,1760861448026,-151.0,0.00032,30]
[391808035,1760861448035,-150.0,0.00032002,120]
[391808036,1760861448044,-1425.0,0.00032009,2]
[391808037,1760861448054,-1734.85013562,0.00032039,4]
[391808038,1760861448064,-150.0,0.00032047,120]
[391808039,1760861448073,-7756.98722847,0.00032056,3]
[391808040,1760861448083,-1030.48370088,0.00032063,2]
[391808041,1760861448092,-1000.0,0.00032066,2]
[391808042,1760861448102,-1425.0,0.00032095,2]
[391808043,1760861448112,-238.45,0.00032096,2]
[391808044,1760861448121,-150.0,0.00032096,2]
[391808045,1760861448131,-150.0,0.00032096,2]
[391808046,1760861448140,-461.56822466,0.0003211,30]
[391808047,1760861448150,-171.47,0.00032125,2]
[391808048,1760861448159,-1000.0,0.00032201,2]
[391808049,1760861448169,-151.85110383,0.00032212,2]
[391808050,1760861448178,-1199.86,0.00032228,30]
[391808051,1760861448188,-30876.10672623,0.00032239,2]
[391808052,1760861448198,-171.46743459,0.00032242,2]
[391808053,1760861448208,-461.56822466,0.00032247,30]
[391808054,1760861448218,-150.0,0.00032273,5]
[391808055,1760861448227,-150.0,0.00032297,2]
[391808056,1760861448237,-720.36,0.00032298,8]
[391808057,1760861448246,-500.0,0.00032299,8]
[391808058,1760861448256,-500.0,0.00032299,8]
[391808059,1760861448265,-500.0,0.00032299,2]
[391808060,1760861448274,-500.0,0.00032299,2]
[391808061,1760861448284,-500.0,0.00032299,8]
[391808062,1760861448294,-500.0,0.00032299,8]
[391808063,1760861448304,-150.0,0.00032299,20]
[391808064,1760861448314,-186.1699329,0.00032299,2]
[391808065,1760861448323,-373.25,0.00032299,8]
[391808066,1760861448334,-500.0,0.00032299,2]
[391808067,1760861448343,-500.0,0.00032299,2]
[391808068,1760861448352,-500.0,0.00032299,2]
[391808069,1760861448362,-500.0,0.00032299,8]
[391808070,1760861448371,-500.0,0.00032299,8]
[391808071,1760861448382,-500.0,0.00032299,8]
[391808072,1760861448391,-1425.0,0.00032299,2]
[391808073,1760861448401,-500.0,0.00032299,5]
[391808074,1760861448411,-500.0,0.00032299,5]
[391808075,1760861448421,-500.0,0.00032299,8]
[391808076,1760861448430,-500.0,0.00032299,8]
[391808077,1760861448440,-500.0,0.00032299,8]
[391808078,1760861448451,-720.36,0.00032299,8]
[391808079,1760861448462,-720.36,0.00032299,8]
[391808080,1760861448472,-2078.91,0.00032299,8]
[391808081,1760861448482,-2078.91,0.00032299,8]
[391808082,1760861448492,-2078.91,0.00032299,8]
[391808083,1760861448502,-154.372883,0.000323,30]
[391808084,1760861448512,-151.0,0.000323,30]
[391808085,1760861448522,-151.0,0.000323,30]
[391808086,1760861448532,-158.230086,0.000323,30]
[391808087,1760861448542,-151.0,0.000323,30]
[391808088,1760861448551,-151.0,0.000323,30]
[391808089,1760861448561,-151.0,0.000323,30]
[391808090,1760861448571,-151.0,0.000323,30]
[391808091,1760861448580,-151.0,0.000323,30]
[391808092,1760861448590,-151.0,0.000323,30]
[391808093,1760861448599,-151.0,0.000323,30]
[391808094,1760861448609,-151.0,0.000323,30]
[391808095,1760861448618,-151.0,0.000323,30]
[391808096,1760861448628,-151.0,0.000323,30]
[391808097,1760861448641,-151.0,0.000323,30]
[391808098,1760861448651,-189.98279,0.000323,30]
[391808099,1760861448660,-189.98279,0.000323,30]
[391808100,1760861448670,-189.98279,0.000323,30]